fUST/lending_fUST_20251004
["ID","MTS","AMOUNT","RATE_DAILY","PERIOD"]
[389010555,1759560678241,-151.0,0.00023288,7]
[389010556,1759560678251,-151.0,0.00023288,7]
[389010557,1759560678260,-168.0,0.00023296,2]
[389010558,1759560678270,-3055.08,0.000233,2]
[389010559,1759560678280,-10574.03,0.000233,2]
[389010560,1759560678289,-168.0,0.00023303,2]
[389010561,1759560678299,-600.0,0.00023321,2]
[389010562,1759560678309,-5727.7076364,0.00023334,2]
[389010563,1759560678319,-198.72965741,0.00023362,2]
[389010564,1759560678330,-268.75712601,0.00023362,2]
[389010565,1759560678340,-297.43949202,0.00023362,2]
[389010566,1759560678350,-152.87704896,0.00023362,2]
[389010567,1759560678360,-1003.0,0.00023362,2]
[389010568,1759560678369,-172.66144163,0.00023366,3]
[389010569,1759560678378,-168.0,0.00023421,2]
[389010570,1759560678387,-168.0,0.00023433,2]
[389010571,1759560678397,-293.52280873,0.000235,3]
[389010572,1759560678406,-3000.0,0.00023512,2]
[389010573,1759560678416,-3000.0,0.00023512,2]
[389010574,1759560678426,-3000.0,0.00023512,2]
[389010575,1759560678438,-1026.49340517,0.00023512,2]
[389010576,1759560678451,-1554.3109073,0.00023512,2]
[389010577,1759560678461,-165.33054,0.00023529,2]
[389010578,1759560678470,-200.0,0.0002356,2]
[389010579,1759560678479,-646.0,0.00023561,3]
[389010580,1759560678488,-500.0,0.00023561,3]
[389010581,1759560678498,-599.69,0.00023561,3]
[389010582,1759560678507,-547.21,0.00023561,3]
[389010583,1759560678517,-1842.46,0.00023561,3]
[389010584,1759560678526,-500.0,0.00023561,3]
[389010585,1759560678535,-500.0,0.00023561,3]
[389010586,1759560678544,-500.0,0.00023561,3]
[389010587,1759560678556,-500.0,0.00023561,3]
[389010588,1759560678571,-1374.26,0.00023561,3]
[389010589,1759560678580,-500.0,0.00023561,3]
[389010590,1759560678590,-3343.34,0.00023561,3]
[389010591,1759560678599,-500.0,0.00023561,3]
[389010592,1759560678610,-500.0,0.00023561,3]
[389010593,1759560678620,-500.0,0.00023561,3]
[389010594,1759560678630,-229.13571346,0.00023561,3]
[389010595,1759560678639,-500.0,0.00023561,3]
[389010596,1759560678648,-631.64,0.00023561,3]
[389010597,1759560678658,-500.0,0.00023561,3]
[389010598,1759560678667,-777.68,0.00023561,3]
[389010599,1759560678676,-500.0,0.00023561,3]
[389010600,1759560678685,-500.0,0.00023561,3]
[389010601,1759560678695,-997.49,0.00023561,3]
[389010602,1759560678704,-835.29,0.00023561,3]
[389010603,1759560678715,-500.0,0.00023561,3]
[389010604,1759560678725,-500.0,0.00023561,3]
[389010605,1759560678734,-1053.37,0.00023561,3]
[389010606,1759560678743,-500.0,0.00023561,3]
[389010607,1759560678753,-920.7,0.00023561,3]
[389010608,1759560678762,-1449.67,0.00023561,3]
[389010609,1759560678771,-1075.68,0.00023561,3]
[389010610,1759560678781,-732.66,0.00023561,3]
[389010611,1759560678790,-1089.69,0.00023561,3]
[389010612,1759560678799,-500.0,0.00023561,3]
[389010613,1759560678809,-500.0,0.00023561,3]
[389010614,1759560678818,-500.0,0.00023561,3]
[389010615,1759560678827,-1450.42,0.00023561,3]
[389010616,1759560678836,-500.0,0.00023561,3]
[389010617,1759560678845,-500.0,0.00023561,3]
[389010618,1759560678855,-533.72,0.00023561,3]
[389010619,1759560678864,-500.0,0.00023561,3]
[389010620,1759560678873,-500.0,0.00023561,3]
[389010621,1759560678882,-482.95183202,0.00023561,3]
[389010622,1759560678891,-501.27,0.00023561,3]
[389010623,1759560678901,-500.0,0.00023561,3]
[389010624,1759560678910,-829.1,0.00023561,3]
[389010625,1759560678919,-500.0,0.00023561,3]
[389010626,1759560678929,-500.0,0.00023561,3]
[389010627,1759560678938,-500.0,0.00023561,3]
[389010628,1759560678947,-568.37,0.00023561,3]
[389010629,1759560678957,-500.0,0.00023561,3]
[389010630,1759560678966,-500.0,0.00023561,3]
[389010631,1759560678978,-500.0,0.00023561,3]
[389010632,1759560678987,-500.0,0.00023561,3]
[389010633,1759560678996,-500.0,0.00023561,3]
[389010634,1759560679006,-1768.05,0.00023561,3]
[389010635,1759560679015,-697.56,0.00023561,3]
[389010636,1759560679025,-500.0,0.00023561,3]
[389010637,1759560679035,-3135.84,0.00023561,3]
[389010638,1759560679044,-748.14,0.00023561,3]
[389010639,1759560679055,-943.9,0.00023561,3]
[389010640,1759560679065,-500.0,0.00023561,3]
[389010641,1759560679074,-500.0,0.00023561,3]
[389010642,1759560679083,-986.28,0.00023561,3]
[389010643,1759560679092,-1083.34,0.00023561,3]
[389010644,1759560679102,-500.0,0.00023561,3]
[389010645,1759560679111,-500.0,0.00023561,3]
[389010646,1759560679120,-500.0,0.00023561,3]
[389010647,1759560679130,-500.0,0.00023561,3]
[389010648,1759560679139,-1225.94,0.00023561,3]
[389010649,1759560679148,-563.08,0.00023561,3]
[389010650,1759560679158,-500.0,0.00023561,3]
[389010651,1759560679167,-500.0,0.00023561,3]
[389010652,1759560679176,-500.0,0.00023561,3]
[389010653,1759560679185,-707.3,0.00023561,3]
[389010654,1759560679195,-1030.77,0.00023561,3]
[389010655,1759560679204,-1690.12,0.00023561,3]
[389010656,1759560679213,-500.0,0.00023561,3]
[389010657,1759560679222,-656.41,0.00023561,3]
[389010658,1759560679231,-1321.92,0.00023561,3]
[389010659,1759560679241,-500.0,0.00023561,3]
[389010660,1759560679250,-500.0,0.00023561,3]
[389010661,1759560679258,-500.0,0.00023561,3]
[389010662,1759560679268,-500.0,0.00023561,3]
[389010663,1759560679278,-500.0,0.00023561,3]
[389010664,1759560679287,-751.87,0.00023561,3]
[389010665,1759560679296,-1067.72,0.00023561,3]
[389010666,1759560679306,-500.0,0.00023561,3]
[389010667,1759560679315,-500.0,0.00023561,3]
[389010668,1759560679324,-500.0,0.00023561,3]
[389010669,1759560679333,-603.08,0.00023561,3]
[389010670,1759560679342,-500.0,0.00023561,3]
[389010671,1759560679351,-705.27,0.00023561,3]
[389010672,1759560679360,-1086.95,0.00023561,3]
[389010673,1759560679369,-500.0,0.00023561,3]
[389010674,1759560679378,-503.11,0.00023561,3]
[389010675,1759560679388,-500.0,0.00023561,3]
[389010676,1759560679397,-500.0,0.00023561,3]
[389010677,1759560679406,-500.0,0.00023561,3]
[389010678,1759560679416,-500.0,0.00023561,3]
[389010679,1759560679425,-500.0,0.00023561,3]
[389010680,1759560679434,-500.0,0.00023561,3]
[389010681,1759560679443,-500.0,0.00023561,3]
[389010682,1759560679452,-500.0,0.00023561,3]
[389010683,1759560679461,-3063.97,0.00023561,3]
[389010684,1759560679471,-500.0,0.00023561,3]
[389010685,1759560679480,-500.0,0.00023561,3]
[389010686,1759560679489,-500.0,0.00023561,3]
[389010687,1759560679498,-500.0,0.00023561,3]
[389010688,1759560679507,-500.0,0.00023561,3]
[389010689,1759560679517,-2015.87,0.00023561,3]
[389010690,1759560679526,-882.11,0.00023561,3]
[389010691,1759560679689,-500.0,0.00023561,3]
[389010692,1759560679699,-1592.96,0.00023561,3]
[389010693,1759560679708,-551.2175941,0.00023561,3]
[389010694,1759560679717,-500.0,0.00023561,3]
[389010695,1759560679726,-902.37,0.00023561,3]
[389010696,1759560679735,-500.0,0.00023561,3]
[389010697,1759560679744,-500.0,0.00023561,2]
[389010698,1759560679753,-545.55,0.00023561,3]
[389010699,1759560679763,-1555.66,0.00023561,3]
[389010700,1759560679771,-500.0,0.00023561,3]
[389010701,1759560679781,-500.0,0.00023561,3]
[389010702,1759560679791,-562.18,0.00023561,3]
[389010703,1759560679800,-500.0,0.00023561,3]
[389010704,1759560679808,-539.88,0.00023561,3]
[389010705,1759560679818,-621.50103138,0.00023561,3]
[389010706,1759560679828,-500.0,0.00023561,3]
[389010707,1759560679838,-649.9,0.00023561,3]
[389010708,1759560679847,-500.0,0.00023561,3]
[389010709,1759560679856,-500.0,0.00023561,3]
[389010710,1759560679865,-1554.42,0.00023561,3]
[389010711,1759560679874,-3135.98,0.00023561,3]
[389010712,1759560679883,-2091.91,0.00023561,3]
[389010713,1759560679892,-462.87791826,0.00023561,3]
[389010714,1759560679902,-500.0,0.00023561,3]
[389010715,1759560679911,-500.0,0.00023561,3]
[389010716,1759560679920,-500.0,0.00023561,3]
[389010717,1759560679929,-1314.83,0.00023561,3]
[389010718,1759560679938,-863.41,0.00023561,3]
[389010719,1759560679947,-971.49,0.00023561,3]
[389010720,1759560679956,-767.34,0.00023561,3]
[389010721,1759560679966,-201.11231128,0.00023561,3]
[389010722,1759560679979,-500.0,0.00023561,3]
[389010723,1759560679988,-500.0,0.00023561,3]
[389010724,1759560679997,-743.49,0.00023561,3]
[389010725,1759560680007,-1637.42,0.00023561,3]
[389010726,1759560680016,-500.0,0.00023561,3]
[389010727,1759560680025,-1161.41,0.00023561,3]
[389010728,1759560680034,-403.03358231,0.00023561,3]
[389010729,1759560680043,-539.03,0.00023561,3]
[389010730,1759560680052,-500.0,0.00023561,3]
[389010731,1759560680061,-500.0,0.00023561,3]
[389010732,1759560680070,-636.6,0.00023561,3]
[389010733,1759560680080,-511.22,0.00023561,3]
[389010734,1759560680089,-500.0,0.00023561,3]
[389010735,1759560680099,-1269.28,0.00023561,3]
[389010736,1759560680108,-500.0,0.00023561,3]
[389010737,1759560680117,-500.0,0.00023561,3]
[389010738,1759560680127,-500.0,0.00023561,3]
[389010739,1759560680136,-761.57,0.00023561,3]
[389010740,1759560680148,-1910.56,0.00023561,3]
[389010741,1759560680158,-1168.53,0.00023561,3]
[389010742,1759560680167,-805.89,0.00023561,3]
[389010743,1759560680177,-500.0,0.00023561,3]
[389010744,1759560680186,-584.95,0.00023561,3]
[389010745,1759560680195,-500.0,0.00023561,3]
[389010746,1759560680204,-500.0,0.00023561,3]
[389010747,1759560680214,-543.76,0.00023561,3]
[389010748,1759560680223,-3954.2,0.00023561,3]
[389010749,1759560680233,-500.0,0.00023561,3]
[389010750,1759560680243,-600.62,0.00023561,3]
[389010751,1759560680252,-500.0,0.00023561,3]
[389010752,1759560680261,-1029.47,0.00023561,3]
[389010753,1759560680271,-1568.4,0.00023561,3]
[389010754,1759560680280,-500.0,0.00023561,3]
[389010755,1759560680289,-500.0,0.00023561,3]
[389010756,1759560680298,-631.7,0.00023561,3]
[389010757,1759560680307,-500.0,0.00023561,3]
[389010758,1759560680316,-500.0,0.00023561,3]
[389010759,1759560680326,-442.67511379,0.00023561,3]
[389010760,1759560680335,-549.7,0.00023561,3]
[389010761,1759560680344,-500.0,0.00023561,3]
[389010762,1759560680353,-590.85009709,0.00023561,3]
[389010763,1759560680362,-500.0,0.00023561,3]
[389010764,1759560680371,-868.91,0.00023561,3]
[389010765,1759560680381,-500.0,0.00023561,3]
[389010766,1759560680391,-697.24,0.00023561,3]
[389010767,1759560680401,-424.7276394,0.00023561,3]
[389010768,1759560680410,-500.0,0.00023561,3]
[389010769,1759560680420,-683.44,0.00023561,3]
[389010770,1759560680429,-500.0,0.00023561,3]
[389010771,1759560680439,-580.14,0.00023561,3]
[389010772,1759560680447,-6388.98,0.00023561,3]
[389010773,1759560680458,-500.0,0.00023561,3]
[389010774,1759560680468,-537.9794856,0.00023561,3]
[389010775,1759560680478,-828.82,0.00023561,3]
[389010776,1759560680488,-500.0,0.00023561,3]
[389010777,1759560680498,-522.14,0.00023561,3]
[389010778,1759560680507,-991.21,0.00023561,3]
[389010779,1759560680517,-1041.86,0.00023561,3]
[389010780,1759560680528,-1986.41,0.00023561,3]
[389010781,1759560680538,-237.95586481,0.00023561,3]
[389010782,1759560680547,-1156.15,0.00023561,3]
[389010783,1759560680557,-674.43,0.00023561,3]
[389010784,1759560680569,-924.04,0.00023561,3]
[389010785,1759560680579,-1748.78,0.00023561,3]
[389010786,1759560680588,-581.4,0.00023561,3]
[389010787,1759560680597,-500.0,0.00023561,3]
[389010788,1759560680606,-905.44,0.00023561,3]
[389010789,1759560680615,-571.37,0.00023561,3]
[389010790,1759560680626,-653.71,0.00023561,3]
[389010791,1759560680636,-1561.34,0.00023561,3]
[389010792,1759560680646,-500.0,0.00023561,3]
[389010793,1759560680656,-500.0,0.00023561,3]
[389010794,1759560680665,-1086.89,0.00023561,3]
[389010795,1759560680675,-500.0,0.00023561,3]
[389010796,1759560680685,-1226.68,0.00023561,3]
[389010797,1759560680695,-500.0,0.00023561,3]
[389010798,1759560680704,-500.0,0.00023561,3]
[389010799,1759560680715,-500.0,0.00023561,3]
[389010800,1759560680724,-500.0,0.00023561,3]
[389010801,1759560680734,-546.86,0.00023561,3]
[389010802,1759560680744,-1026.48,0.00023561,3]
[389010803,1759560680754,-917.82,0.00023561,3]
[389010804,1759560680763,-500.0,0.00023561,3]
[389010805,1759560680773,-500.0,0.00023561,3]
[389010806,1759560680784,-680.39,0.00023561,3]
[389010807,1759560680793,-2304.04,0.00023561,3]
[389010808,1759560680803,-500.0,0.00023561,3]
[389010809,1759560680813,-500.0,0.00023561,3]
[389010810,1759560680823,-500.0,0.00023561,3]
[389010811,1759560680833,-669.02,0.00023561,3]
[389010812,1759560680842,-2915.74,0.00023561,3]
[389010813,1759560680851,-500.0,0.00023561,3]
[389010814,1759560680861,-915.3,0.00023561,3]
[389010815,1759560680871,-500.0,0.00023561,3]
[389010816,1759560680880,-1286.32,0.00023561,3]
[389010817,1759560680889,-500.0,0.00023561,3]
[389010818,1759560680899,-500.0,0.00023561,3]
[389010819,1759560680909,-500.0,0.00023561,3]
[389010820,1759560680918,-2035.86,0.00023561,3]
[389010821,1759560680927,-500.0,0.00023561,3]
[389010822,1759560680937,-500.0,0.00023561,3]
[389010823,1759560680946,-756.07,0.00023561,3]
[389010824,1759560680955,-500.0,0.00023561,3]
[389010825,1759560680965,-768.72,0.00023561,3]
[389010826,1759560680976,-1057.87,0.00023561,3]
[389010827,1759560680995,-738.16,0.00023561,3]
[389010828,1759560681006,-500.0,0.00023561,3]
[389010829,1759560681015,-636.08,0.00023561,3]
[389010830,1759560681024,-1408.29,0.00023561,3]
[389010831,1759560681034,-500.0,0.00023561,3]
[389010832,1759560681043,-500.0,0.00023561,3]
[389010833,1759560681052,-560.36313257,0.00023561,3]
[389010834,1759560681062,-1171.53,0.00023561,3]
[389010835,1759560681072,-2461.76,0.00023561,3]
[389010836,1759560681081,-1079.04,0.00023561,3]
[389010837,1759560681090,-500.0,0.00023561,3]
[389010838,1759560681099,-500.0,0.00023561,3]
[389010839,1759560681109,-746.78,0.00023561,3]
[389010840,1759560681118,-500.0,0.00023561,3]
[389010841,1759560681127,-500.0,0.00023561,3]
[389010842,1759560681136,-1291.71,0.00023561,3]
[389010843,1759560681146,-828.76,0.00023561,3]
[389010844,1759560681155,-500.0,0.00023561,3]
[389010845,1759560681165,-1613.58,0.00023561,3]
[389010846,1759560681175,-548.47,0.00023561,3]
[389010847,1759560681184,-5365.04,0.00023561,3]
[389010848,1759560681193,-7286.14,0.00023561,3]
[389010849,1759560681203,-335.81389104,0.00023561,3]
[389010850,1759560681212,-1253.24,0.00023561,3]
[389010851,1759560681221,-412.91750182,0.00023561,3]
[389010852,1759560681231,-2494.76,0.00023561,3]
[389010853,1759560681240,-500.0,0.00023561,3]
[389010854,1759560681250,-565.62,0.00023561,3]
[389010855,1759560681259,-976.86,0.00023561,3]
[389010856,1759560681268,-605.07,0.00023561,3]
[389010857,1759560681277,-376.47218512,0.00023561,3]
[389010858,1759560681286,-500.0,0.00023561,3]
[389010859,1759560681296,-500.0,0.00023561,3]
[389010860,1759560681305,-4450.87,0.00023561,3]
[389010861,1759560681315,-500.0,0.00023561,3]
[389010862,1759560681324,-500.0,0.00023561,3]
[389010863,1759560681333,-500.0,0.00023561,3]
[389010864,1759560681343,-2698.6,0.00023561,3]
[389010865,1759560681352,-1380.39512124,0.00023561,3]
[389010932,1759561023937,229.245536,0.00016438,2]
[389010934,1759561081850,300.0,0.000164,2]
[389010935,1759561140748,269.60928861,0.000164,2]
[389010940,1759561489070,10000.0,0.00025,30]
[389010945,1759561520889,10000.0,0.00025,30]
[389010946,1759561533420,10000.0,0.00025,30]
[389010956,1759561816975,11394.31966332,0.00018,2]
[389010988,1759561832171,-1000.0,0.00019963,2]
[389012005,1759561846315,-1018.9669137,0.00019963,2]
[389012515,1759562057960,521.0,0.00028767,120]
[389012570,1759562498043,8000.0,0.0002876,120]
[389012576,1759562540168,8021.7768076,0.0002876,120]
[389013189,1759563032509,-3292.99968229,0.00019963,2]
[389013190,1759563032519,-300.0,0.00019988,2]
[389013191,1759563032528,-207.05178138,0.00019989,2]
[389013192,1759563032538,-353.00175403,0.00019989,2]
[389013193,1759563032546,-580.51229827,0.00019989,2]
[389013196,1759563032555,-500.0,0.00019989,2]
[389013198,1759563032565,-500.0,0.00019989,2]
[389013200,1759563032573,-500.0,0.00019989,2]
[389013201,1759563032582,-258.71223149,0.00019989,2]
[389013203,1759563032591,-567.90097821,0.00019989,2]
[389013204,1759563032600,-264.62367111,0.00019989,2]
[389013205,1759563032610,-37525.9510731,0.00019989,2]
[389013206,1759563032618,-430.80311964,0.0001999,2]
[389013279,1759563038451,-99569.19688036,0.0001999,2]
[389013282,1759563038461,-515.94600579,0.00020873,2]
[389013284,1759563038470,-500.0,0.00020973,2]
[389013286,1759563038479,-500.0,0.00020973,2]
[389013287,1759563038488,-500.0,0.00020973,2]
[389013290,1759563038497,-500.0,0.00020973,2]
[389013291,1759563038508,-500.0,0.00020973,2]
[389013293,1759563038518,-500.0,0.00020973,2]
[389013296,1759563038528,-500.0,0.00020973,2]
[389013298,1759563038536,-500.0,0.00020973,2]
[389013300,1759563038546,-500.0,0.00020973,2]
[389013302,1759563038555,-500.0,0.00020973,2]
[389013304,1759563038564,-500.0,0.00020973,2]
[389013306,1759563038574,-500.0,0.00020973,2]
[389013308,1759563038583,-500.0,0.00020973,2]
[389013310,1759563038592,-290.39469538,0.00020973,2]
[389013312,1759563038602,-151.0,0.00020975,2]
[389013314,1759563038611,-400986.745683,0.00020988,2]
[389013316,1759563038620,-300.0,0.00021317,20]
[389013318,1759563038629,-300.0,0.00021317,20]
[389013320,1759563038638,-300.0,0.00021317,20]
[389013322,1759563038647,-300.0,0.00021317,20]
[389013324,1759563038656,-300.0,0.00021317,20]
[389013326,1759563038665,-300.0,0.00021317,20]
[389013328,1759563038674,-300.0,0.00021317,20]
[389013330,1759563038683,-300.0,0.00021317,20]
[389013332,1759563038692,-300.0,0.00021317,20]
[389013334,1759563038701,-300.0,0.00021317,20]
[389013336,1759563038711,-300.0,0.00021317,20]
[389013338,1759563038720,-300.0,0.00021317,20]
[389013340,1759563038729,-300.0,0.00021317,20]
[389013342,1759563038738,-300.0,0.00021317,20]
[389013344,1759563038749,-300.0,0.00021317,20]
[389013346,1759563038758,-500.0,0.00021521,2]
[389013348,1759563038768,-500.0,0.00021521,2]
[389013350,1759563038778,-264.80018165,0.00021521,2]
[389013352,1759563038787,-500.0,0.00021521,2]
[389013354,1759563038796,-500.0,0.00021521,2]
[389013356,1759563038806,-1000.0,0.00021521,2]
[389013358,1759563038815,-1000.0,0.00021521,2]
[389013360,1759563038824,-500.0,0.00021521,2]
[389013362,1759563038834,-500.0,0.00021521,2]
[389013364,1759563038843,-500.0,0.00021521,2]
[389013366,1759563038852,-1000.0,0.00021521,2]
[389013368,1759563038863,-1000.0,0.00021521,2]
[389013370,1759563038873,-526.49340517,0.00021521,2]
[389013372,1759563038882,-483.05601553,0.00021643,2]
[389013374,1759563038891,-500.0,0.00021643,2]
[389013376,1759563038901,-500.0,0.00021643,2]
[389013378,1759563038911,-500.0,0.00021643,2]
[389013380,1759563038922,-500.0,0.00021643,2]
[389013382,1759563038931,-500.0,0.00021643,2]
[389013384,1759563038941,-500.0,0.00021643,2]
[389013386,1759563038951,-500.0,0.00021643,2]
[389013388,1759563038960,-138334.17016994,0.00021717,2]
[389019259,1759563895330,202.39,0.00024,120]
[389019270,1759563932679,996.6,0.00028767,120]
[389019377,1759564238659,-185.97539814,0.00018635,2]
[389019379,1759564238668,-179.03443659,0.00019888,2]
[389019381,1759564238678,-179.03443659,0.00019889,2]
[389019383,1759564238687,-611.3656804,0.0001989,2]
[389019385,1759564238697,-300.0,0.00019987,2]
[389019387,1759564238706,-762.0,0.00019987,2]
[389019389,1759564238715,-39278.52204755,0.00019988,2]
[389019391,1759564238725,-1200.0,0.00019988,2]
[389019393,1759564238734,-500.0,0.00019988,2]
[389019395,1759564238747,-240.01389983,0.00019988,2]
[389019397,1759564238757,-325.46966039,0.00019988,2]
[389019399,1759564238766,-527.3045014,0.00019988,2]
[389019401,1759564238776,-157.94832829,0.00019988,2]
[389019403,1759564238786,-500.0,0.00019988,2]
[389019404,1759564238795,-500.0,0.00019988,2]
[389019406,1759564238804,-500.0,0.00019988,2]
[389019409,1759564238815,-407.50029512,0.00019988,2]
[389019410,1759564238825,-211.94447723,0.00019988,2]
[389019412,1759564238834,-340.6154576,0.00019989,2]
[389019414,1759564238845,-252.12252262,0.00019989,2]
[389019416,1759564238855,-100000.0,0.0001999,2]
[389019418,1759564238864,-1517.53736964,0.00020288,2]
[389019420,1759564238873,-318.84,0.00020378,3]
[389019422,1759564238882,-159.42,0.00020378,3]
[389019424,1759564238892,-478.3,0.00020378,3]
[389019426,1759564238903,-300.0,0.00020388,2]
[389019427,1759564238913,-300.0,0.00020388,2]
[389019428,1759564238922,-300.0,0.00020388,2]
[389019429,1759564238931,-300.0,0.00020388,2]
[389019430,1759564238940,-300.0,0.00020388,2]
[389019431,1759564238950,-300.0,0.00020388,2]
[389019432,1759564238959,-300.0,0.00020388,2]
[389019433,1759564238968,-300.0,0.00020388,2]
[389019434,1759564238977,-300.0,0.00020388,2]
[389019435,1759564238988,-300.0,0.00020388,2]
[389019436,1759564238998,-300.0,0.00020388,2]
[389019437,1759564239008,-300.0,0.00020388,2]
[389019438,1759564239018,-300.0,0.00020388,2]
[389019439,1759564239028,-300.0,0.00020388,2]
[389019440,1759564239039,-300.0,0.00020388,2]
[389019442,1759564239048,-199.86,0.000205,2]
[389019443,1759564239057,-1517.53736961,0.0002067,2]
[389019445,1759564239067,-408.0,0.000208,2]
[389019447,1759564239076,-1435.76157827,0.00020852,2]
[389019449,1759564239085,-500.0,0.00020873,2]
[389019451,1759564239095,-500.0,0.00020873,2]
[389019453,1759564239104,-351.20955115,0.00020873,2]
[389019455,1759564239113,-500.0,0.00020873,2]
[389019457,1759564239123,-500.0,0.00020873,2]
[389019459,1759564239132,-500.0,0.00020873,2]
[389019461,1759564239141,-500.0,0.00020873,2]
[389019463,1759564239150,-500.0,0.00020873,2]
[389019465,1759564239159,-500.0,0.00020873,2]
[389019467,1759564239169,-250.0,0.00020878,2]
[389019469,1759564239178,-151.0,0.00020878,2]
[389019471,1759564239187,-250.0,0.00020878,2]
[389019473,1759564239196,-151.0,0.00020878,2]
[389019475,1759564239206,-250.0,0.00020878,2]
[389019477,1759564239215,-151.0,0.00020878,2]
[389019479,1759564239225,-250.0,0.00020878,2]
[389019481,1759564239234,-151.0,0.00020878,2]
[389019483,1759564239245,-151.0,0.00020878,2]
[389019485,1759564239254,-151.0,0.00020878,2]
[389019487,1759564239264,-151.0,0.00020878,2]
[389019489,1759564239273,-151.0,0.00020878,2]
[389019491,1759564239283,-151.0,0.00020878,2]
[389019493,1759564239294,-151.0,0.00020878,2]
[389019495,1759564239303,-151.0,0.00020878,2]
[389019497,1759564239312,-500.0,0.00020878,2]
[389019499,1759564239321,-151.0,0.00020878,2]
[389019501,1759564239332,-500.0,0.00020878,2]
[389019503,1759564239341,-151.0,0.00020878,2]
[389019505,1759564239351,-500.0,0.00020878,2]
[389019507,1759564239361,-151.0,0.00020878,2]
[389019509,1759564239370,-500.0,0.00020878,2]
[389019511,1759564239379,-151.0,0.00020878,2]
[389019513,1759564239389,-500.0,0.00020878,2]
[389019515,1759564239399,-151.0,0.00020878,2]
[389019517,1759564239408,-500.0,0.00020878,2]
[389019519,1759564239417,-151.0,0.00020878,2]
[389019521,1759564239427,-500.0,0.00020878,2]
[389019523,1759564239437,-151.0,0.00020878,2]
[389019525,1759564239446,-271.04663926,0.00020878,2]
[389019527,1759564239455,-151.0,0.00020878,2]
[389019529,1759564239465,-155.54126508,0.00020878,2]
[389019531,1759564239474,-151.0,0.00020878,2]
[389019533,1759564239484,-370000.0,0.0002089,2]
[389019535,1759564239494,-500.0,0.0002089,2]
[389019537,1759564239503,-500.0,0.0002089,2]
[389019539,1759564239512,-611.36568038,0.00020959,2]
[389019541,1759564239522,-703.42870383,0.0002098,2]
[389019543,1759564239531,-1517.53736961,0.00021053,2]
[389019545,1759564239541,-500.0,0.00021164,2]
[389019547,1759564239550,-500.0,0.00021164,2]
[389019549,1759564239560,-6463.4669144,0.00021183,2]
[389019551,1759564239569,-1134.4779794,0.00021183,2]
[389019553,1759564239579,-492.0,0.000212,2]
[389019555,1759564239588,-1435.76157827,0.00021285,2]
[389019557,1759564239598,-283.0,0.00021302,2]
[389019559,1759564239607,-165.98138,0.0002137,2]
[389019561,1759564239616,-1435.76157828,0.0002137,2]
[389019563,1759564239625,-1003.15310287,0.00021421,2]
[389019565,1759564239636,-1000.0,0.00021421,2]
[389019567,1759564239645,-500.0,0.00021421,2]
[389019569,1759564239654,-1517.53736961,0.00021435,2]
[389019571,1759564239663,-500.0,0.00021438,2]
[389019573,1759564239672,-500.0,0.00021438,2]